[Event "Early-Titled-Tuesday-Blitz-February-27-2024"]
[Site "Chess.com"]
[Date "2024.02.27"]
[Round "1"]
[White "Cayse"]
[Black "killer_dreams"]
[Result "0-1"]
[WhiteElo "2822"]
[BlackElo "2500"]
[TimeControl "180+1"]
[EndTime "8:08:27 PST"]
[Termination "killer_dreams won on time"]

1. e4 {[%clk 0:02:55.7]} 1... c5 {[%clk 0:02:59.3]} 2. Nf3 {[%clk 0:02:54.8]}
2... d6 {[%clk 0:02:59.7]} 3. Bb5+ {[%clk 0:02:54]} 3... Nd7 {[%clk 0:02:58.3]}
4. d4 {[%clk 0:02:53.3]} 4... cxd4 {[%clk 0:02:59.2]} 5. Qxd4 {[%clk 0:02:53.4]}
5... a6 {[%clk 0:02:59.4]} 6. Bxd7+ {[%clk 0:02:53.3]} 6... Bxd7 {[%clk
0:03:00.3]} 7. O-O {[%clk 0:02:53.1]} 7... e5 {[%clk 0:02:59.2]} 8. Qd3 {[%clk
0:02:52.9]} 8... Rc8 {[%clk 0:02:58]} 9. c4 {[%clk 0:02:52]} 9... h6 {[%clk
0:02:53.3]} 10. Nc3 {[%clk 0:02:47.7]} 10... Nf6 {[%clk 0:02:52.2]} 11. a4
{[%clk 0:02:44.8]} 11... Be7 {[%clk 0:02:44.2]} 12. b3 {[%clk 0:02:44.4]} 12...
O-O {[%clk 0:02:43.6]} 13. Ba3 {[%clk 0:02:38.6]} 13... Qc7 {[%clk 0:02:43.4]}
14. Nxe5 {[%clk 0:02:35.4]} 14... dxe5 {[%clk 0:02:34.2]} 15. Bxe7 {[%clk
0:02:34.5]} 15... Rfe8 {[%clk 0:02:34.9]} 16. Bxf6 {[%clk 0:02:34.4]} 16... gxf6
{[%clk 0:02:35.8]} 17. Nd5 {[%clk 0:02:34.6]} 17... Qd8 {[%clk 0:02:36.3]} 18.
Nxf6+ {[%clk 0:02:10.4]} 18... Qxf6 {[%clk 0:02:35.2]} 19. Qxd7 {[%clk
0:02:11.3]} 19... b6 {[%clk 0:02:32.6]} 20. Rad1 {[%clk 0:02:08.1]} 20... Rcd8
{[%clk 0:02:23.9]} 21. Qg4+ {[%clk 0:01:57.5]} 21... Kh8 {[%clk 0:02:23.2]} 22.
g3 {[%clk 0:01:53.6]} 22... a5 {[%clk 0:02:20.7]} 23. Rxd8 {[%clk 0:01:51.7]}
23... Rxd8 {[%clk 0:02:20.7]} 24. Rd1 {[%clk 0:01:52.4]} 24... Rxd1+ {[%clk
0:02:15.1]} 25. Qxd1 {[%clk 0:01:53.3]} 25... Kg7 {[%clk 0:02:07.1]} 26. Kg2
{[%clk 0:01:52.9]} 26... Qc6 {[%clk 0:02:04.8]} 27. Qd5 {[%clk 0:01:52.2]} 27...
Qf6 {[%clk 0:02:02.6]} 28. h4 {[%clk 0:01:51]} 28... Qe7 {[%clk 0:02:00.9]} 29.
Kf1 {[%clk 0:01:32]} 29... Qc7 {[%clk 0:01:56.3]} 30. Ke2 {[%clk 0:01:28.2]}
30... Qe7 {[%clk 0:01:56.4]} 31. Kd3 {[%clk 0:01:24.2]} 31... Qc7 {[%clk
0:01:56.7]} 32. c5 {[%clk 0:01:18.9]} 32... bxc5 {[%clk 0:01:42.8]} 33. Kc4
{[%clk 0:01:18.9]} 33... Kg6 {[%clk 0:01:23.3]} 34. Qxc5 {[%clk 0:01:05.4]}
34... Qb7 {[%clk 0:01:21.8]} 35. f3 {[%clk 0:00:58.7]} 35... Qa6+ {[%clk
0:01:18.1]} 36. Kc3 {[%clk 0:00:44.4]} 36... Qe2 {[%clk 0:01:05.4]} 37. Qxe5
{[%clk 0:00:41]} 37... Qe1+ {[%clk 0:00:35.1]} 38. Kc4 {[%clk 0:00:39]} 38...
Qb4+ {[%clk 0:00:34.4]} 39. Kd5 {[%clk 0:00:09.3]} 39... Qxb3+ {[%clk
0:00:35.3]} 40. Kd6 {[%clk 0:00:09.6]} 40... Qxa4 {[%clk 0:00:31.5]} 41. h5+
{[%clk 0:00:09.7]} 41... Kh7 {[%clk 0:00:31.3]} 42. Ke7 {[%clk 0:00:09.4]} 42...
Qb4+ {[%clk 0:00:17.1]} 43. Kxf7 {[%clk 0:00:09.1]} 43... Qb7+ {[%clk
0:00:17.2]} 44. Kf6 {[%clk 0:00:08.4]} 44... Qc6+ {[%clk 0:00:16.1]} 45. Kf5
{[%clk 0:00:08.4]} 45... a4 {[%clk 0:00:16.2]} 46. Qe7+ {[%clk 0:00:08.2]} 46...
Kg8 {[%clk 0:00:16.4]} 47. Qd8+ {[%clk 0:00:07.9]} 47... Kf7 {[%clk 0:00:16.2]}
48. Qa5 {[%clk 0:00:06.4]} 48... Qf6+ {[%clk 0:00:11.9]} 49. Kg4 {[%clk
0:00:06.4]} 49... Qg5+ {[%clk 0:00:12.6]} 50. Qxg5 {[%clk 0:00:05.3]} 50... hxg5
{[%clk 0:00:13.5]} 51. h6 {[%clk 0:00:05.2]} 51... a3 {[%clk 0:00:13.6]} 52. e5
{[%clk 0:00:04.2]} 52... a2 {[%clk 0:00:13.6]} 53. Kxg5 {[%clk 0:00:04.7]} 53...
a1=Q {[%clk 0:00:13.8]} 54. f4 {[%clk 0:00:05.2]} 54... Qa8 {[%clk 0:00:13.3]}
55. f5 {[%clk 0:00:04.1]} 55... Qe4 {[%clk 0:00:12.6]} 56. e6+ {[%clk
0:00:03.5]} 56... Kg8 {[%clk 0:00:13.1]} 57. g4 {[%clk 0:00:03.6]} 57... Kh7
{[%clk 0:00:11.7]} 58. Kf6 {[%clk 0:00:03.9]} 58... Qxg4 {[%clk 0:00:11.5]} 59.
e7 {[%clk 0:00:04.3]} 59... Qd4+ {[%clk 0:00:08.4]} 60. Ke6 {[%clk 0:00:04.3]}
60... Qe4+ {[%clk 0:00:08.2]} 61. Kd6 {[%clk 0:00:04.5]} 61... Kxh6 {[%clk
0:00:07.3]} 62. Kd7 {[%clk 0:00:01.4]} 62... Qd5+ {[%clk 0:00:07.6]} 0-1

[Event "Early-Titled-Tuesday-Blitz-February-27-2024"]
[Site "Chess.com"]
[Date "2024.02.27"]
[Round "1"]
[White "Rikikits"]
[Black "Yerlan-Ra"]
[Result "1-0"]
[WhiteElo "2843"]
[BlackElo "2476"]
[TimeControl "180+1"]
[EndTime "8:08:28 PST"]
[Termination "Rikikits won by resignation"]

1. d4 {[%clk 0:03:00.9]} 1... Nf6 {[%clk 0:02:59.6]} 2. c4 {[%clk 0:03:00.9]}
2... g6 {[%clk 0:03:00.5]} 3. Nf3 {[%clk 0:03:00.5]} 3... Bg7 {[%clk 0:03:01]}
4. g3 {[%clk 0:03:00.8]} 4... d6 {[%clk 0:03:01.9]} 5. Bg2 {[%clk 0:03:01]} 5...
O-O {[%clk 0:03:02.8]} 6. O-O {[%clk 0:03:00.5]} 6... Nc6 {[%clk 0:03:03]} 7.
Nc3 {[%clk 0:03:00.3]} 7... a6 {[%clk 0:03:03.4]} 8. d5 {[%clk 0:02:56.4]} 8...
Na5 {[%clk 0:03:03.3]} 9. Nd2 {[%clk 0:02:56.3]} 9... c5 {[%clk 0:03:03.2]} 10.
Qc2 {[%clk 0:02:52.2]} 10... e5 {[%clk 0:02:58.4]} 11. b3 {[%clk 0:02:51.4]}
11... Bf5 {[%clk 0:02:52.6]} 12. e4 {[%clk 0:02:48.3]} 12... Bd7 {[%clk
0:02:52.8]} 13. a4 {[%clk 0:02:46.6]} 13... Ne8 {[%clk 0:02:42.8]} 14. Bb2
{[%clk 0:02:45]} 14... Nc7 {[%clk 0:02:42.9]} 15. f4 {[%clk 0:02:44]} 15... b5
{[%clk 0:02:42.2]} 16. axb5 {[%clk 0:02:43.6]} 16... axb5 {[%clk 0:02:43.1]} 17.
Ra2 {[%clk 0:02:31.1]} 17... Nb7 {[%clk 0:01:56.2]} 18. Rfa1 {[%clk 0:02:27.4]}
18... exf4 {[%clk 0:01:52.2]} 19. gxf4 {[%clk 0:02:27]} 19... Qh4 {[%clk
0:01:48.8]} 20. Ne2 {[%clk 0:02:26]} 20... Bg4 {[%clk 0:01:38.9]} 21. Bxg7
{[%clk 0:02:22.5]} 21... Kxg7 {[%clk 0:01:38.8]} 22. Ng3 {[%clk 0:02:19.5]}
22... Qf6 {[%clk 0:01:33.4]} 23. Rxa8 {[%clk 0:01:50.8]} 23... Qd4+ {[%clk
0:01:32]} 24. Kh1 {[%clk 0:01:46.8]} 24... Rxa8 {[%clk 0:01:32.4]} 25. Rf1
{[%clk 0:01:28.9]} 25... Ra1 {[%clk 0:01:29.7]} 26. h3 {[%clk 0:01:17]} 26...
Rxf1+ {[%clk 0:01:14.2]} 27. Ndxf1 {[%clk 0:01:17.9]} 27... Bd1 {[%clk
0:01:12.7]} 28. Qa2 {[%clk 0:01:08.8]} 28... bxc4 {[%clk 0:00:32.8]} 29. bxc4
{[%clk 0:01:09.7]} 29... h5 {[%clk 0:00:30.2]} 30. e5 {[%clk 0:01:02]} 30... h4
{[%clk 0:00:28.6]} 31. Ne4 {[%clk 0:01:01.6]} 31... dxe5 {[%clk 0:00:28.7]} 32.
fxe5 {[%clk 0:01:00.9]} 32... Qxe5 {[%clk 0:00:27.5]} 33. Qf2 {[%clk 0:01:00.7]}
33... Qd4 {[%clk 0:00:21.4]} 34. Qxd4+ {[%clk 0:00:56.2]} 34... cxd4 {[%clk
0:00:21.1]} 35. Nfd2 {[%clk 0:00:53.9]} 35... Na6 {[%clk 0:00:19.7]} 36. Bf3
{[%clk 0:00:46.8]} 36... Bc2 {[%clk 0:00:16.9]} 37. Kg1 {[%clk 0:00:45.8]} 37...
f5 {[%clk 0:00:15.6]} 38. Ng5 {[%clk 0:00:45.9]} 38... Nd6 {[%clk 0:00:15.5]}
39. Ne6+ {[%clk 0:00:45]} 39... Kf6 {[%clk 0:00:16.1]} 40. Nxd4 {[%clk
0:00:45.9]} 40... Bd3 {[%clk 0:00:16.5]} 41. Be2 {[%clk 0:00:45.3]} 41... Ke5
{[%clk 0:00:14.2]} 42. Nc6+ {[%clk 0:00:43.3]} 42... Kf4 {[%clk 0:00:14.1]} 43.
Bxd3 {[%clk 0:00:42.5]} 43... Ke3 {[%clk 0:00:15]} 44. c5 {[%clk 0:00:24.1]}
44... Nxc5 {[%clk 0:00:14.9]} 45. Nc4+ {[%clk 0:00:24.7]} 45... Kxd3 {[%clk
0:00:09]} 46. Nxd6 {[%clk 0:00:24.6]} 46... f4 {[%clk 0:00:07.3]} 47. Kf2 {[%clk
0:00:23.4]} 47... g5 {[%clk 0:00:06.6]} 48. Kf3 {[%clk 0:00:23.6]} 48... Nb3
{[%clk 0:00:04.5]} 49. Nf5 {[%clk 0:00:20.6]} 49... Nd2+ {[%clk 0:00:04.4]} 50.
Kg4 {[%clk 0:00:21.2]} 50... f3 {[%clk 0:00:04.9]} 51. Ne5+ {[%clk 0:00:21.6]}
51... Ke2 {[%clk 0:00:04.8]} 52. Nd4+ {[%clk 0:00:20.6]} 52... Ke3 {[%clk
0:00:04.7]} 53. Ndxf3 {[%clk 0:00:21.5]} 53... Ne4 {[%clk 0:00:04.5]} 54. Nxg5
{[%clk 0:00:21.1]} 54... Nf6+ {[%clk 0:00:04.7]} 55. Kxh4 {[%clk 0:00:21]} 55...
Nxd5 {[%clk 0:00:05.6]} 56. Kg4 {[%clk 0:00:17.4]} 56... Kd4 {[%clk 0:00:04.2]}
57. Nef7 {[%clk 0:00:14.7]} 57... Nf6+ {[%clk 0:00:02.1]} 58. Kf5 {[%clk
0:00:14.6]} 58... Nh5 {[%clk 0:00:03]} 59. Ne6+ {[%clk 0:00:13.3]} 59... Kd5
{[%clk 0:00:02.8]} 60. Nf4+ {[%clk 0:00:12.6]} 60... Nxf4 {[%clk 0:00:03.1]} 61.
Kxf4 {[%clk 0:00:13.5]} 61... Ke6 {[%clk 0:00:04]} 62. Ne5 {[%clk 0:00:14.1]}
62... Kf6 {[%clk 0:00:04.9]} 63. h4 {[%clk 0:00:14.8]} 63... Kg7 {[%clk
0:00:05.3]} 64. Kg5 {[%clk 0:00:15.4]} 1-0

[Event "Early-Titled-Tuesday-Blitz-February-27-2024"]
[Site "Chess.com"]
[Date "2024.02.27"]
[Round "1"]
[White "leschebaza"]
[Black "bazar-wokzal"]
[Result "0-1"]
[WhiteElo "2378"]
[BlackElo "2678"]
[TimeControl "180+1"]
[EndTime "8:08:31 PST"]
[Termination "bazar-wokzal won by checkmate"]

1. Nf3 {[%clk 0:03:00.8]} 1... c5 {[%clk 0:02:59.1]} 2. c4 {[%clk 0:03:00.4]}
2... g6 {[%clk 0:02:58.7]} 3. Nc3 {[%clk 0:02:58.1]} 3... Bg7 {[%clk 0:02:57.7]}
4. e3 {[%clk 0:02:57.1]} 4... Nc6 {[%clk 0:02:57.9]} 5. d4 {[%clk 0:02:57]} 5...
cxd4 {[%clk 0:02:46.2]} 6. exd4 {[%clk 0:02:57.9]} 6... d6 {[%clk 0:02:45.6]} 7.
d5 {[%clk 0:02:57.7]} 7... Ne5 {[%clk 0:02:45]} 8. Nxe5 {[%clk 0:02:56.4]} 8...
Bxe5 {[%clk 0:02:44.5]} 9. Bd3 {[%clk 0:02:56.8]} 9... Bxc3+ {[%clk 0:02:41.2]}
10. bxc3 {[%clk 0:02:56.7]} 10... Qa5 {[%clk 0:02:39.7]} 11. O-O {[%clk
0:02:49.4]} 11... Nf6 {[%clk 0:02:37.2]} 12. Re1 {[%clk 0:02:43.9]} 12... e5
{[%clk 0:02:06.2]} 13. dxe6 {[%clk 0:02:29.8]} 13... Bxe6 {[%clk 0:02:05.4]} 14.
Be3 {[%clk 0:02:29.8]} 14... O-O {[%clk 0:01:59.8]} 15. Bd4 {[%clk 0:02:29.4]}
15... Nd7 {[%clk 0:01:59]} 16. Qf3 {[%clk 0:02:19.4]} 16... Ne5 {[%clk
0:01:46.6]} 17. Qf6 {[%clk 0:02:11.3]} 17... Qd8 {[%clk 0:01:41.3]} 18. Bxe5
{[%clk 0:01:40.9]} 18... dxe5 {[%clk 0:01:39.7]} 19. Qf3 {[%clk 0:01:39.4]}
19... Qc7 {[%clk 0:01:30.3]} 20. Rab1 {[%clk 0:01:36.1]} 20... b6 {[%clk
0:01:28.9]} 21. Rb5 {[%clk 0:01:33.8]} 21... f6 {[%clk 0:01:23.6]} 22. h4 {[%clk
0:01:33.7]} 22... Rad8 {[%clk 0:01:16.6]} 23. Rb4 {[%clk 0:01:04.2]} 23... Qd7
{[%clk 0:00:57.4]} 24. Be4 {[%clk 0:00:59.4]} 24... f5 {[%clk 0:00:44.9]} 25.
Bc2 {[%clk 0:00:49.2]} 25... e4 {[%clk 0:00:44.4]} 26. Qe3 {[%clk 0:00:43.4]}
26... Qd2 {[%clk 0:00:40.8]} 27. Bb3 {[%clk 0:00:40.9]} 27... Qxe3 {[%clk
0:00:39.2]} 28. Rxe3 {[%clk 0:00:41.7]} 28... Rd3 {[%clk 0:00:21.5]} 29. Rb5
{[%clk 0:00:34.7]} 29... Rfd8 {[%clk 0:00:19.7]} 30. Re5 {[%clk 0:00:31]} 30...
Kf7 {[%clk 0:00:18.7]} 31. Re2 {[%clk 0:00:22]} 31... Rd2 {[%clk 0:00:16]} 32.
Re1 {[%clk 0:00:20.6]} 32... Kf6 {[%clk 0:00:15.4]} 33. Rb5 {[%clk 0:00:18.9]}
33... R8d6 {[%clk 0:00:15]} 34. c5 {[%clk 0:00:18.1]} 34... bxc5 {[%clk
0:00:15.3]} 35. Rxc5 {[%clk 0:00:19]} 35... Bxb3 {[%clk 0:00:14.4]} 36. axb3
{[%clk 0:00:19.9]} 36... Rb2 {[%clk 0:00:14.1]} 37. b4 {[%clk 0:00:20.2]} 37...
Rdd2 {[%clk 0:00:13.2]} 38. Rf1 {[%clk 0:00:18.1]} 38... Ra2 {[%clk 0:00:13.2]}
39. Rc6+ {[%clk 0:00:17.9]} 39... Kg7 {[%clk 0:00:13.6]} 40. Re6 {[%clk
0:00:12.2]} 40... Rdc2 {[%clk 0:00:12.6]} 41. Rd1 {[%clk 0:00:08.9]} 41... Rxf2
{[%clk 0:00:12]} 42. Rd7+ {[%clk 0:00:08.6]} 42... Kh6 {[%clk 0:00:11]} 43. Rxa7
{[%clk 0:00:04.3]} 43... Rxg2+ {[%clk 0:00:09.5]} 44. Kf1 {[%clk 0:00:04.7]}
44... Rxa7 {[%clk 0:00:03.3]} 45. Kxg2 {[%clk 0:00:04.8]} 45... Rc7 {[%clk
0:00:03.6]} 46. b5 {[%clk 0:00:03.2]} 46... Rxc3 {[%clk 0:00:03.9]} 47. b6
{[%clk 0:00:04.1]} 47... Rb3 {[%clk 0:00:04.3]} 48. Rc6 {[%clk 0:00:03.9]} 48...
Kh5 {[%clk 0:00:04.7]} 49. Rc7 {[%clk 0:00:03.4]} 49... h6 {[%clk 0:00:04.9]}
50. Rh7 {[%clk 0:00:04.3]} 50... Rxb6 {[%clk 0:00:04.2]} 51. Kg3 {[%clk
0:00:03.1]} 51... Rb3+ {[%clk 0:00:04.7]} 52. Kf4 {[%clk 0:00:04]} 52... Rf3+
{[%clk 0:00:04.8]} 53. Ke5 {[%clk 0:00:04.9]} 53... e3 {[%clk 0:00:05.3]} 54.
Kf6 {[%clk 0:00:05.8]} 54... e2 {[%clk 0:00:05.3]} 55. Kg7 {[%clk 0:00:06.7]}
55... e1=Q {[%clk 0:00:05.1]} 56. Rxh6+ {[%clk 0:00:07.6]} 56... Kg4 {[%clk
0:00:05.5]} 57. Rxg6+ {[%clk 0:00:08.5]} 57... Kf4 {[%clk 0:00:05.8]} 58. Rh6
{[%clk 0:00:09.3]} 58... Qe5+ {[%clk 0:00:06]} 59. Kg6 {[%clk 0:00:09.6]} 59...
Rg3+ {[%clk 0:00:06.3]} 60. Kh5 {[%clk 0:00:10]} 60... Qe8+ {[%clk 0:00:06.5]}
61. Rg6 {[%clk 0:00:10.1]} 61... Qxg6# {[%clk 0:00:07.4]} 0-1

[Event "Early-Titled-Tuesday-Blitz-February-27-2024"]
[Site "Chess.com"]
[Date "2024.02.27"]
[Round "1"]
[White "Anton_Demchenko"]
[Black "Fdpo95"]
[Result "1-0"]
[WhiteElo "2906"]
[BlackElo "2506"]
[TimeControl "180+1"]
[EndTime "8:08:37 PST"]
[Termination "Anton_Demchenko won by resignation"]

1. e4 {[%clk 0:03:00.9]} 1... c5 {[%clk 0:02:52.9]} 2. Nf3 {[%clk 0:03:00.6]}
2... e6 {[%clk 0:02:52.7]} 3. g3 {[%clk 0:02:59.9]} 3... Nc6 {[%clk 0:02:44.8]}
4. Bg2 {[%clk 0:02:59.8]} 4... d5 {[%clk 0:02:42.4]} 5. exd5 {[%clk 0:02:58.6]}
5... exd5 {[%clk 0:02:42.8]} 6. O-O {[%clk 0:02:59.4]} 6... Be7 {[%clk
0:02:43.5]} 7. d4 {[%clk 0:02:59.2]} 7... cxd4 {[%clk 0:02:44]} 8. Nxd4 {[%clk
0:02:57.8]} 8... Nf6 {[%clk 0:02:44.6]} 9. Nc3 {[%clk 0:02:52.9]} 9... O-O
{[%clk 0:02:44.6]} 10. Be3 {[%clk 0:02:53]} 10... Bg4 {[%clk 0:02:43]} 11. f3
{[%clk 0:02:47.6]} 11... Be6 {[%clk 0:02:43.4]} 12. Bf2 {[%clk 0:02:46.7]} 12...
Bb4 {[%clk 0:02:38.1]} 13. Nce2 {[%clk 0:02:46.7]} 13... Rc8 {[%clk 0:02:32.5]}
14. c3 {[%clk 0:02:44.7]} 14... Bd6 {[%clk 0:02:27.6]} 15. Qd2 {[%clk
0:02:36.3]} 15... Re8 {[%clk 0:02:18.7]} 16. Rfe1 {[%clk 0:02:33.3]} 16... Ne5
{[%clk 0:02:19]} 17. b3 {[%clk 0:02:32.6]} 17... Ng6 {[%clk 0:02:12.2]} 18. Rad1
{[%clk 0:02:22]} 18... a6 {[%clk 0:02:11.8]} 19. Nxe6 {[%clk 0:01:58.9]} 19...
fxe6 {[%clk 0:02:12.7]} 20. Nd4 {[%clk 0:01:47]} 20... e5 {[%clk 0:02:08.4]} 21.
Nf5 {[%clk 0:01:46.3]} 21... Bf8 {[%clk 0:02:08.8]} 22. Bh3 {[%clk 0:01:18.1]}
22... Qc7 {[%clk 0:01:53.1]} 23. Ne3 {[%clk 0:01:08.5]} 23... Rcd8 {[%clk
0:01:53.2]} 24. Ng4 {[%clk 0:01:09]} 24... Bc5 {[%clk 0:01:46.5]} 25. Nxf6+
{[%clk 0:01:04.8]} 25... gxf6 {[%clk 0:01:46.6]} 26. Bf5 {[%clk 0:01:05.3]}
26... Kg7 {[%clk 0:01:43.1]} 27. Kg2 {[%clk 0:01:02.4]} 27... Qb6 {[%clk
0:01:19.2]} 28. Bxc5 {[%clk 0:00:57.5]} 28... Qxc5 {[%clk 0:01:20.1]} 29. Re3
{[%clk 0:00:49.5]} 29... Ne7 {[%clk 0:01:01.8]} 30. Bb1 {[%clk 0:00:41.2]} 30...
Nc6 {[%clk 0:00:39.1]} 31. Qd3 {[%clk 0:00:36.2]} 31... e4 {[%clk 0:00:39.5]}
32. Qd2 {[%clk 0:00:28.1]} 32... f5 {[%clk 0:00:39.8]} 33. Ree1 {[%clk
0:00:18.1]} 33... Qe7 {[%clk 0:00:40.2]} 34. Qf4 {[%clk 0:00:15.5]} 34... Qf6
{[%clk 0:00:38.3]} 35. c4 {[%clk 0:00:12.1]} 35... exf3+ {[%clk 0:00:29.8]} 36.
Qxf3 {[%clk 0:00:12.2]} 36... dxc4 {[%clk 0:00:28.5]} 37. bxc4 {[%clk
0:00:09.9]} 37... Rxe1 {[%clk 0:00:27.5]} 38. Rxe1 {[%clk 0:00:10.2]} 38... Rd2+
{[%clk 0:00:28]} 39. Kh1 {[%clk 0:00:05.8]} 39... Qb2 {[%clk 0:00:28.2]} 40.
Bxf5 {[%clk 0:00:03.7]} 40... Rxh2+ {[%clk 0:00:24.9]} 41. Kg1 {[%clk
0:00:04.4]} 41... h5 {[%clk 0:00:15.6]} 42. Bd7 {[%clk 0:00:03.4]} 42... Ne5
{[%clk 0:00:14.5]} 43. Rxe5 {[%clk 0:00:02.4]} 43... Qxe5 {[%clk 0:00:15.4]} 44.
Kxh2 {[%clk 0:00:02.5]} 44... Qb2+ {[%clk 0:00:15.4]} 45. Kh3 {[%clk 0:00:02.7]}
45... Qd4 {[%clk 0:00:13.8]} 46. Qd5 {[%clk 0:00:03.3]} 46... Qg1 {[%clk
0:00:11]} 47. Bf5 {[%clk 0:00:03.2]} 47... Kf6 {[%clk 0:00:09.9]} 48. Be4 {[%clk
0:00:03.2]} 48... Qf1+ {[%clk 0:00:09.5]} 49. Bg2 {[%clk 0:00:03.5]} 49... Qa1
{[%clk 0:00:06.1]} 50. Kh2 {[%clk 0:00:03.4]} 50... h4 {[%clk 0:00:05.6]} 51.
gxh4 {[%clk 0:00:03.4]} 51... Qe1 {[%clk 0:00:05.6]} 52. Qg5+ {[%clk 0:00:03.6]}
52... Kf7 {[%clk 0:00:05.8]} 53. Qf5+ {[%clk 0:00:03.4]} 53... Kg7 {[%clk
0:00:05.4]} 54. Qg4+ {[%clk 0:00:03.7]} 54... Kf7 {[%clk 0:00:05]} 55. Qf4+
{[%clk 0:00:03.9]} 55... Ke8 {[%clk 0:00:04.7]} 56. Qg3 {[%clk 0:00:04.8]} 56...
Qd1 {[%clk 0:00:03.8]} 57. c5 {[%clk 0:00:04.8]} 57... b6 {[%clk 0:00:03.6]} 58.
cxb6 {[%clk 0:00:04.8]} 58... Qb1 {[%clk 0:00:03.7]} 59. b7 {[%clk 0:00:05.1]}
1-0

[Event "Early-Titled-Tuesday-Blitz-February-27-2024"]
[Site "Chess.com"]
[Date "2024.02.27"]
[Round "1"]
[White "ProChessWICTH"]
[Black "Hikaru"]
[Result "0-1"]
[WhiteElo "2542"]
[BlackElo "3241"]
[TimeControl "180+1"]
[EndTime "8:08:43 PST"]
[Termination "Hikaru won by resignation"]

1. e4 {[%clk 0:03:00.9]} 1... a6 {[%clk 0:02:54.3]} 2. Bc4 {[%clk 0:02:59.7]}
2... b5 {[%clk 0:02:53.5]} 3. Bxf7+ {[%clk 0:02:32.1]} 3... Kxf7 {[%clk
0:02:54.4]} 4. Qh5+ {[%clk 0:02:32.1]} 4... g6 {[%clk 0:02:55.1]} 5. Qd5+ {[%clk
0:02:32.5]} 5... e6 {[%clk 0:02:56]} 6. Qxa8 {[%clk 0:02:32.8]} 6... Nc6 {[%clk
0:02:56.9]} 7. Nf3 {[%clk 0:02:26.4]} 7... Nf6 {[%clk 0:02:56.5]} 8. d3 {[%clk
0:02:05.5]} 8... Bc5 {[%clk 0:02:55.7]} 9. O-O {[%clk 0:01:52.2]} 9... Qe7
{[%clk 0:02:47.6]} 10. Bh6 {[%clk 0:01:30.4]} 10... Re8 {[%clk 0:02:32.2]} 11.
c3 {[%clk 0:01:17.8]} 11... Bb6 {[%clk 0:02:26.3]} 12. Bg5 {[%clk 0:01:08.5]}
12... Qf8 {[%clk 0:02:17.1]} 13. d4 {[%clk 0:01:04.9]} 13... Na5 {[%clk
0:02:16.2]} 14. Ne5+ {[%clk 0:01:00.7]} 14... Kg7 {[%clk 0:01:54.1]} 15. Bxf6+
{[%clk 0:00:59.7]} 15... Qxf6 {[%clk 0:01:47.4]} 16. b4 {[%clk 0:00:59.4]} 16...
Nb7 {[%clk 0:01:35.3]} 17. Qxa6 {[%clk 0:00:55.2]} 17... Nd6 {[%clk 0:01:35.1]}
18. Qa3 {[%clk 0:00:53.5]} 18... Nxe4 {[%clk 0:01:35.3]} 19. Qc1 {[%clk
0:00:51.6]} 19... d6 {[%clk 0:01:27.1]} 20. Nd3 {[%clk 0:00:50.4]} 20... Bb7
{[%clk 0:01:25.8]} 21. Nd2 {[%clk 0:00:45.8]} 21... Ng5 {[%clk 0:01:24]} 22. f3
{[%clk 0:00:40]} 22... e5 {[%clk 0:01:18.3]} 23. Ne4 {[%clk 0:00:29.1]} 23...
Nxe4 {[%clk 0:01:18.5]} 24. fxe4 {[%clk 0:00:30]} 24... Qh4 {[%clk 0:01:19.3]}
25. Kh1 {[%clk 0:00:08.2]} 25... Qxe4 {[%clk 0:01:13.2]} 26. Qd2 {[%clk
0:00:06.9]} 26... Qg4 {[%clk 0:01:08.1]} 27. Rae1 {[%clk 0:00:06.6]} 27... e4
{[%clk 0:01:08.2]} 28. Nf2 {[%clk 0:00:06.5]} 28... Qe6 {[%clk 0:01:06.5]} 29.
Nd1 {[%clk 0:00:07.1]} 29... Ra8 {[%clk 0:01:05.4]} 30. Ne3 {[%clk 0:00:07.6]}
30... Rxa2 {[%clk 0:01:05.5]} 31. Qd1 {[%clk 0:00:08.3]} 31... h5 {[%clk
0:01:01.6]} 32. Re2 {[%clk 0:00:08.5]} 32... Ra3 {[%clk 0:01:00.7]} 33. Qc1
{[%clk 0:00:08.2]} 33... Ra2 {[%clk 0:00:57.8]} 34. Ref2 {[%clk 0:00:07.9]}
34... Rxf2 {[%clk 0:00:57.8]} 35. Rxf2 {[%clk 0:00:08.8]} 35... d5 {[%clk
0:00:50.3]} 36. Qe1 {[%clk 0:00:06.8]} 36... c6 {[%clk 0:00:50.1]} 37. Rf1
{[%clk 0:00:06.5]} 37... Bc7 {[%clk 0:00:49.1]} 38. Qf2 {[%clk 0:00:06.8]} 38...
Qe7 {[%clk 0:00:48.8]} 39. g3 {[%clk 0:00:06.2]} 39... Bc8 {[%clk 0:00:49.3]}
40. Ng2 {[%clk 0:00:05.4]} 40... Bh3 {[%clk 0:00:49.2]} 41. Re1 {[%clk
0:00:03.1]} 41... Bg4 {[%clk 0:00:49.3]} 42. Ne3 {[%clk 0:00:02.6]} 42... Bh3
{[%clk 0:00:48.3]} 43. Kg1 {[%clk 0:00:02.3]} 43... Bd8 {[%clk 0:00:47.6]} 44.
Ng2 {[%clk 0:00:02.8]} 44... Qa7 {[%clk 0:00:46.1]} 45. Nf4 {[%clk 0:00:03.2]}
45... Bg4 {[%clk 0:00:46.7]} 46. h3 {[%clk 0:00:03.1]} 46... Bd7 {[%clk
0:00:46.8]} 47. Qe3 {[%clk 0:00:03.5]} 47... Qc7 {[%clk 0:00:43.4]} 48. Kh2
{[%clk 0:00:04]} 48... Qd6 {[%clk 0:00:42.1]} 49. Rf1 {[%clk 0:00:04.6]} 49...
h4 {[%clk 0:00:42.3]} 50. Ne2 {[%clk 0:00:04.7]} 50... Qe6 {[%clk 0:00:38.6]}
51. g4 {[%clk 0:00:03.8]} 51... Bc7+ {[%clk 0:00:38.9]} 52. Kg2 {[%clk
0:00:03.7]} 52... Qd6 {[%clk 0:00:39.6]} 53. Qf4 {[%clk 0:00:03.1]} 53... Qxf4
{[%clk 0:00:39.2]} 54. Nxf4 {[%clk 0:00:03.7]} 54... Bd8 {[%clk 0:00:40.1]} 55.
Ne2 {[%clk 0:00:02.9]} 55... Bg5 {[%clk 0:00:40.8]} 56. Rf2 {[%clk 0:00:02.8]}
56... Bd2 {[%clk 0:00:40.7]} 57. Rf1 {[%clk 0:00:03.1]} 57... Be8 {[%clk
0:00:39.9]} 58. Kf2 {[%clk 0:00:03.8]} 58... g5 {[%clk 0:00:39.6]} 59. Rd1
{[%clk 0:00:04.3]} 59... e3+ {[%clk 0:00:40.2]} 60. Kf1 {[%clk 0:00:04.1]} 60...
Bg6 {[%clk 0:00:41.1]} 61. Ng1 {[%clk 0:00:04.2]} 61... Bd3+ {[%clk 0:00:35.4]}
62. Ne2 {[%clk 0:00:03.8]} 62... Bc4 {[%clk 0:00:34.2]} 63. Ra1 {[%clk
0:00:02.8]} 63... Bxc3 {[%clk 0:00:34.4]} 64. Ra7+ {[%clk 0:00:03.4]} 64... Kf8
{[%clk 0:00:34.7]} 65. Ra8+ {[%clk 0:00:03.6]} 65... Ke7 {[%clk 0:00:34.8]} 66.
Rg8 {[%clk 0:00:04.2]} 66... Bxd4 {[%clk 0:00:31.4]} 67. Rxg5 {[%clk 0:00:04.5]}
67... Bf6 {[%clk 0:00:30.9]} 68. Rf5 {[%clk 0:00:04.7]} 68... d4 {[%clk
0:00:31.6]} 69. g5 {[%clk 0:00:02.9]} 69... Bg7 {[%clk 0:00:31.6]} 70. Rf4
{[%clk 0:00:01.6]} 70... d3 {[%clk 0:00:30]} 71. Re4+ {[%clk 0:00:02.1]} 71...
Kd6 {[%clk 0:00:24.1]} 72. Rxe3 {[%clk 0:00:02.2]} 72... d2 {[%clk 0:00:18.3]}
73. g6 {[%clk 0:00:01.9]} 73... d1=Q+ {[%clk 0:00:18.7]} 74. Kf2 {[%clk
0:00:02.5]} 74... Qxe2+ {[%clk 0:00:17.5]} 75. Rxe2 {[%clk 0:00:02.8]} 75...
Bxe2 {[%clk 0:00:18]} 76. Kxe2 {[%clk 0:00:03.7]} 76... Ke5 {[%clk 0:00:18.3]}
77. Kf3 {[%clk 0:00:04.1]} 77... Kf5 {[%clk 0:00:18.8]} 0-1